bitfinex/quotes_ETHUSD_20210401
["timestamp","ask_amount","ask_price","bid_price","bid_amount"]
[1617311998902,0.28,1968.8,1968.4,3.191]
[1617311999103,0.28,1968.8,1968.4,10.8094]
[1617311999503,0.28,1968.8,1968.4,7.7094]
[1617312000305,0.17529,1968.8,1968.4,7.7094]
[1617312000515,0.17529,1968.8,1968.4,0.501]
[1617312000516,7.79419,1968.8,1968.4,0.501]
[1617312001108,7.79419,1968.8,1968.4,0.55]
[1617312001709,7.79419,1968.8,1968.4,0.14]
[1617312002309,3.55463852,1968.7,1968.4,0.14]
[1617312002741,3.81008,1968.6,1968.4,0.14]
[1617312003339,7.62016,1968.5,1968.4,0.14]
[1617312003539,7.90016,1968.5,1968.1,0.14]
[1617312003939,4.09033,1968.5,1968.1,0.14]
[1617312004137,3.55463852,1968.4,1968.1,0.14]
[1617312004538,4.22033,1968.5,1968.1,0.14]
[1617312004740,0.28,1968.4,1968.1,0.14]
[1617312005167,7.62113,1968.3,1968.1,0.14]
[1617312005768,7.62113,1968.3,1967.9,5.01]
[1617312005967,7.62113,1968.3,1967.9,5.15]
[1617312006370,7.62113,1968.3,1968.0,5.01]
[1617312006770,11.43193,1968.3,1967.9,5.15]
[1617312007168,3.8108,1968.3,1967.9,5.15]
[1617312007370,3.8108,1968.3,1967.9,0.14]
[1617312008184,7.6216,1968.2,1967.9,0.14]
[1617312009397,0.39,1968.1,1967.9,0.14]
[1617312010411,7.6216,1968.2,1967.9,0.14]
[1617312010616,8.0016,1968.2,1967.9,0.14]
[1617312011017,8.3096,1968.2,1967.6,0.48941806]
[1617312011214,0.392,1968.0,1967.6,0.08941806]
[1617312011413,3.94663852,1968.0,1967.5,0.62942298]
[1617312011615,0.802,1968.0,1967.5,0.22942298]
[1617312012212,4.61323,1968.0,1967.5,0.22942298]
[1617312012814,4.61323,1968.0,1967.5,0.14]
[1617312013036,4.61323,1968.0,1967.5,5.15]
[1617312013240,7.62269,1967.9,1967.5,5.15]
[1617312013837,7.62269,1967.9,1967.5,0.14]
[1617312014238,0.38,1967.8,1967.5,0.14]
[1617312015439,7.93069,1967.9,1967.5,0.14]
[1617312015657,8.32069,1967.9,1967.5,0.14]
[1617312016058,8.29569,1967.9,1967.5,0.14]
[1617312016260,3.55463852,1967.8,1967.5,0.14]
[1617312016661,0.718,1967.9,1967.5,0.14]
[1617312017264,0.09132494,1968.0,1967.5,0.54]
[1617312017464,0.67,1968.0,1967.5,0.14]
[1617312017664,3.55463852,1967.9,1967.5,5.15]
[1617312017864,7.62341,1967.8,1967.5,0.14]
[1617312018485,3.55463852,1967.7,1967.3,0.39]
[1617312018685,0.718,1967.7,1967.2,0.15781449]
[1617312018886,0.41,1967.5,1967.2,0.15781449]
[1617312019284,0.69,1967.5,1967.2,0.15781449]
[1617312019884,0.69,1967.5,1967.1,1.01780462]
[1617312020285,0.69,1967.5,1967.1,1.0]
[1617312020484,0.4,1967.4,1967.1,1.0]
[1617312020685,0.28,1967.5,1967.1,1.0]
[1617312020913,0.69,1967.5,1967.1,1.0]
[1617312021119,0.69,1967.5,1967.1,6.01]
[1617312022314,0.69,1967.5,1967.1,1.0]
[1617312024132,0.4,1967.3,1967.1,1.0]
[1617312024541,0.28,1967.4,1967.1,1.0]
[1617312024736,0.67,1967.4,1967.1,1.0]
[1617312024935,0.28,1967.4,1967.1,1.0]
[1617312025137,0.67,1967.4,1967.1,1.0]
[1617312027183,8.29477,1967.4,1967.1,1.0]
[1617312027584,0.39,1967.3,1967.1,1.0]
[1617312029184,8.01514,1967.3,1967.1,1.0]
[1617312031418,0.39,1967.2,1967.1,1.0]
[1617312032016,3.94463852,1967.2,1967.1,1.0]
[1617312032416,0.39,1967.2,1967.1,1.0]
[1617312033218,12.18593852,1967.2,1967.1,1.0]
[1617312033619,8.6313,1967.2,1967.1,1.0]
[1617312034270,16.25684,1967.2,1967.1,1.0]
[1617312034668,15.86684,1967.2,1967.1,1.0]
[1617312035269,16.25684,1967.2,1967.1,1.0]
[1617312039519,17.45684,1967.2,1967.1,1.0]
[1617312040713,18.47829699,1967.2,1967.1,1.0]
[1617312041943,18.47829699,1967.2,1966.7,0.04518714]
[1617312042154,0.39,1966.8,1966.7,8.714e-05]
[1617312042348,10.0,1966.7,1966.1,1.0]
[1617312042646,0.69,1966.2,1966.1,1.0]
[1617312042845,4.2105662,1966.2,1966.1,1.0]
[1617312043044,11.8404762,1966.2,1966.1,1.0]
[1617312043444,11.8404762,1966.2,1966.1,0.95]
[1617312044046,11.5604762,1966.2,1966.1,0.95]
[1617312044444,18.5604762,1966.2,1966.1,0.95]
[1617312044845,18.5604762,1966.2,1966.1,0.76039097]
[1617312045046,18.5604762,1966.2,1966.1,0.71039097]
[1617312045846,18.5604762,1966.2,1966.1,0.19302638]
[1617312046045,18.5604762,1966.2,1966.0,0.0001]
[1617312046247,0.4,1966.1,1966.0,0.0001]
[1617312049272,10.57634,1966.1,1966.0,0.0001]
[1617312050295,3.81615,1965.9,1964.7,7.53223]
[1617312050498,3.81615,1965.9,1964.6,1.14]
[1617312050499,0.38,1965.0,1964.6,1.14]
[1617312050697,0.4,1964.7,1964.6,1.14]
[1617312050895,0.28,1965.0,1964.6,1.0]
[1617312051093,0.28,1965.0,1964.6,1.14]
[1617312051495,0.39,1964.8,1964.6,1.14]
[1617312051894,0.28,1965.0,1964.6,1.04]
[1617312052721,0.67,1965.1,1964.6,1.04]
[1617312053120,0.67,1965.1,1964.6,6.05]
[1617312053529,0.67,1965.1,1964.6,1.04]
[1617312053927,0.76132494,1965.1,1964.6,1.04]
[1617312055363,5.01,1965.0,1964.6,1.04]
[1617312055562,0.38,1964.9,1964.6,1.04]
[1617312055964,0.38,1964.9,1964.6,0.9]
[1617312056762,0.28,1965.0,1964.6,0.9]
[1617312056964,0.69,1965.0,1964.6,1.04]
[1617312057772,0.28,1965.0,1964.6,1.04]
[1617312058570,0.378,1964.9,1964.6,0.9]
[1617312058772,0.378,1964.9,1964.1,10.37605019]
[1617312058773,0.39,1964.6,1964.1,10.37605019]
[1617312058970,0.39,1964.6,1964.1,14.07605019]
[1617312058971,0.76,1964.5,1964.1,14.07605019]
[1617312059170,0.35,1964.5,1964.1,14.07605019]
[1617312059772,0.38,1964.4,1964.1,22.07605019]
[1617312059971,0.35,1964.5,1964.1,22.07605019]
[1617312060401,5.01,1964.9,1964.1,22.48605019]
[1617312060596,0.42,1964.8,1964.3,0.39]
[1617312060794,0.42,1964.8,1964.4,0.056]
[1617312060994,0.42,1964.8,1964.4,0.446]
[1617312062195,0.42,1964.8,1964.4,0.056]
[1617312062394,0.42,1964.8,1964.4,0.006]
[1617312062595,0.4,1964.6,1964.4,0.006]
[1617312062796,0.83,1964.8,1964.4,0.006]
[1617312063023,0.38,1964.7,1964.4,0.006]
[1617312063221,0.83,1964.8,1964.4,0.006]
[1617312063421,0.38,1964.7,1964.4,0.006]
[1617312063821,0.42,1964.8,1964.4,0.006]
[1617312064022,0.82,1964.8,1964.4,0.006]
[1617312066245,5.28,1964.9,1964.4,0.006]
[1617312066446,5.95,1964.9,1964.4,0.006]
[1617312067446,5.9,1964.9,1964.4,0.006]
[1617312067647,5.51,1964.9,1964.4,0.416]
[1617312069072,5.51,1964.9,1964.4,0.006]
[1617312069277,5.9,1964.9,1964.4,0.006]
[1617312069673,5.51,1964.9,1964.5,0.4]
[1617312069875,5.51,1964.9,1964.4,0.006]
[1617312070472,0.28,1964.9,1964.4,0.006]
[1617312071115,13.93772494,1965.1,1964.6,0.38]
[1617312071318,29.877141,1965.6,1965.0,0.39]
[1617312071319,0.09132494,1965.4,1965.0,0.39]
[1617312071521,0.09132494,1965.7,1965.1,2.86959135]
[1617312071715,16.61978124,1965.8,1965.1,3.27304667]
[1617312071918,16.61978124,1965.8,1965.3,0.14]
[1617312072115,15.684641,1965.8,1965.3,0.14]
[1617312072318,14.4959,1965.8,1965.3,0.14]
[1617312072520,14.4959,1965.8,1965.7,0.39]
[1617312072720,8.819761,1966.0,1965.7,0.39]
[1617312072721,1.188741,1966.0,1965.7,7.0595]
[1617312072918,1.188741,1966.0,1965.9,0.38]
[1617312073535,0.4,1966.3,1965.8,0.81]
[1617312073733,0.4,1966.3,1965.8,1.35]
[1617312073932,8.95853,1966.4,1965.9,0.39]
[1617312074533,1.0,1966.4,1966.0,0.41]
[1617312076149,1.0,1966.4,1966.1,0.39]
[1617312076744,1.0,1966.4,1966.2,0.4]
[1617312077545,1.0,1966.4,1966.3,0.38]
[1617312079570,1.0,1966.4,1966.2,15.62699]
[1617312079774,1.0,1966.4,1966.0,10.16931]
[1617312079972,1.0,1966.4,1966.0,10.55931]
[1617312080170,1.0,1966.4,1966.0,18.55931]
[1617312081399,1.0,1966.4,1966.2,0.41]
[1617312084419,1.0,1966.4,1966.0,21.83757]
[1617312084623,1.0,1966.4,1966.1,0.41]
[1617312085019,1.0,1966.4,1966.0,10.90757]
[1617312085220,1.0,1966.4,1966.1,0.39]
[1617312086673,1.0,1966.4,1966.1,8.39]
[1617312086872,1.0,1966.4,1966.1,0.39]
[1617312087475,1.0,1966.4,1966.1,8.39]
[1617312087670,1.0,1966.4,1966.1,0.39]
[1617312088069,1.0,1966.4,1966.1,8.01728]
[1617312089071,1.0,1966.4,1966.1,7.62728]
[1617312091674,1.0,1966.4,1966.1,15.62728]
[1617312092093,1.0,1966.4,1966.1,7.62728]
[1617312092692,1.0,1966.4,1966.1,15.62728]
[1617312094295,1.0,1966.4,1966.1,8.0]
[1617312094527,1.0,1966.4,1966.0,0.41]
[1617312094922,1.41,1966.4,1965.9,21.97794]
[1617312096525,1.41,1966.4,1965.9,13.01]
[1617312096727,1.41,1966.4,1965.8,0.39]
[1617312096927,0.4,1966.2,1965.8,0.14]
[1617312097154,0.4,1966.2,1965.8,8.14]
[1617312098351,0.4,1966.2,1965.8,0.14]
[1617312098588,0.4,1966.2,1965.8,15.76833]
[1617312098784,0.4,1966.2,1965.8,8.14]
[1617312098985,0.413,1966.3,1965.9,0.41]
[1617312100083,0.413,1966.3,1965.8,8.14]
[1617312100283,1.41,1966.4,1965.9,8.02802]
[1617312100483,1.69,1966.4,1965.9,8.02802]
[1617312100682,1.69,1966.4,1965.9,7.62802]
[1617312101084,0.39,1966.3,1965.9,7.62802]
[1617312102085,1.0,1966.4,1965.9,8.02802]
[1617312102298,1.0,1966.4,1965.9,17.72032]
[1617312102692,1.68,1966.4,1965.9,21.58032]
[1617312103296,1.68,1966.4,1965.9,23.6143665]
[1617312103493,1.68,1966.4,1965.9,15.9863465]
[1617312103694,1.68,1966.4,1966.1,7.6275]
[1617312103894,1.4,1966.4,1966.1,15.6275]
[1617312104094,1.4,1966.4,1966.1,8.0]
[1617312104095,1.0,1966.4,1966.1,8.0]
[1617312104292,1.0,1966.4,1966.1,11.86]
[1617312104797,1.0,1966.4,1966.2,7.62728]
[1617312105421,1.0,1966.4,1966.2,10.60728]
[1617312115425,0.38,1966.3,1966.2,7.62728]
[1617312117225,1.0,1966.4,1966.2,7.62728]
[1617312117624,1.0,1966.4,1966.2,15.62728]
[1617312119648,0.4,1966.3,1966.2,15.62728]
[1617312119849,0.4,1966.3,1966.2,7.62728]
[1617312120051,0.4,1966.3,1965.7,10.17108]
[1617312120251,0.4,1965.9,1965.7,10.17108]
[1617312120455,0.68,1965.9,1965.7,10.17108]
[1617312120683,0.68,1965.9,1965.4,12.714943]
[1617312121283,0.68,1965.9,1965.4,10.1722]
[1617312121482,0.68,1965.9,1965.4,18.3122]
[1617312121886,0.785,1965.8,1965.4,8.14]
[1617312122085,0.785,1965.8,1965.4,0.14]
[1617312122486,0.385,1965.8,1965.4,0.55]
[1617312122686,3.81549,1965.9,1965.6,0.4]
[1617312122886,3.81549,1965.9,1965.5,0.4]
[1617312123088,3.81549,1965.9,1965.4,0.14]
[1617312123300,3.80949,1965.9,1965.4,0.14]
[1617312123500,3.80949,1965.9,1965.4,8.14]
[1617312123702,11.44046,1965.9,1965.4,0.14]
[1617312124301,11.65046,1965.9,1965.4,0.14]
[1617312124500,12.05046,1965.9,1965.4,0.14]
[1617312124701,12.05046,1965.9,1965.4,3.02]
[1617312125300,12.05046,1965.9,1965.4,0.14]
[1617312128333,12.05046,1965.9,1965.4,7.77082]
[1617312128850,0.61,1965.9,1965.4,7.77082]
[1617312130653,0.21,1965.9,1965.4,8.16082]
[1617312130856,7.63079,1966.0,1965.4,8.16082]
[1617312130857,8.31079,1966.0,1965.4,8.16082]
[1617312131311,0.68,1966.0,1965.4,8.16082]
[1617312131709,0.28,1966.0,1965.6,0.4]
[1617312131909,14.9337,1966.3,1965.6,8.9296]
[1617312132109,0.308,1966.2,1965.6,16.9366]
[1617312132311,0.308,1966.2,1965.9,7.62891]
[1617312132513,1.0,1966.4,1965.9,8.01891]
[1617312132709,1.68,1966.4,1965.9,15.62891]
[1617312133107,1.68,1966.4,1965.9,16.01891]
[1617312133708,1.68,1966.4,1965.9,8.39]
[1617312133908,1.68,1966.4,1965.9,0.39]
[1617312135109,1.68,1966.4,1966.0,7.62866]
[1617312135510,1.68,1966.4,1966.0,24.69136]
[1617312135710,1.68,1966.4,1966.0,28.45136]
[1617312135913,1.0,1966.4,1966.0,20.8227]
[1617312136314,1.0,1966.4,1966.2,7.62765]
[1617312136529,1.0,1966.4,1966.3,0.4]
[1617312136926,1.0,1966.4,1966.3,3.87153546]
[1617312137525,1.0,1966.4,1966.3,0.4]
[1617312137924,1.0,1966.4,1966.3,3.87153546]
[1617312138125,1.0,1966.4,1966.3,7.62664]
[1617312138525,1.0,1966.4,1966.3,15.62664]
[1617312140152,1.0,1966.4,1966.3,16.00664]
[1617312141151,1.0,1966.4,1966.3,19.20664]
[1617312144403,1.0,1966.4,1966.3,18.82664]
[1617312144805,1.0,1966.4,1966.3,11.2]
[1617312145011,1.0,1966.4,1966.3,8.0]
[1617312145207,1.0,1966.4,1966.1,0.4]
[1617312145410,1.0,1966.4,1966.1,8.02737]
[1617312145605,1.0,1966.4,1966.1,21.03737]
[1617312145805,1.0,1966.4,1966.1,8.4]
[1617312146005,1.0,1966.4,1966.2,3.47153546]
[1617312146206,1.0,1966.4,1966.1,8.4]
[1617312146405,1.0,1966.4,1966.2,7.62684]
[1617312148054,1.0,1966.4,1966.2,8.01684]
[1617312148454,1.0,1966.4,1966.2,11.48837546]
[1617312148655,1.0,1966.4,1966.2,15.92837546]
[1617312149457,1.0,1966.4,1966.2,12.45684]
[1617312149661,1.0,1966.4,1966.2,12.06684]
[1617312150258,1.0,1966.4,1966.2,15.53837546]
[1617312150459,1.0,1966.4,1966.2,12.06684]
[1617312151658,1.0,1966.4,1966.2,20.45684]
[1617312151864,1.0,1966.4,1966.3,7.62649]
[1617312152280,1.0,1966.4,1966.3,10.68649]
[1617312154283,1.0,1966.4,1966.3,7.62649]
[1617312154904,1.0,1966.4,1966.3,15.62649]
[1617312157739,1.0,1966.4,1966.3,15.63249]
[1617312160162,1.0,1966.4,1966.3,15.64439318]
[1617312160557,1.0,1966.4,1966.3,15.63249]
[1617312162162,1.0,1966.4,1966.3,15.63839311]
[1617312167615,1.0,1966.4,1966.3,7.63249]
[1617312167812,1.0,1966.4,1966.3,7.63839444]
[1617312168637,1.4,1966.4,1966.3,7.63839444]
[1617312168836,1.4,1966.4,1966.3,15.63839444]
[1617312169037,1.0,1966.4,1966.3,8.006]
[1617312169236,1.0,1966.4,1966.3,0.006]
[1617312169635,1.0,1966.4,1966.3,8.006]
[1617312170036,1.0,1966.4,1966.3,0.006]
[1617312170661,1.0,1966.4,1966.3,8.006]
[1617312171866,1.39,1966.4,1966.3,0.006]
[1617312172268,1.39,1966.4,1966.2,0.006]
[1617312174687,1.0,1966.4,1966.2,0.006]
[1617312175492,1.0,1966.4,1966.3,0.006]
[1617312175916,1.38,1966.4,1966.2,7.52038586]
[1617312176318,0.4,1966.3,1966.2,7.52038586]
[1617312176915,1.0,1966.4,1966.2,7.52038586]
[1617312177115,1.38,1966.4,1966.2,7.52038586]
[1617312177916,1.0,1966.4,1966.2,7.52038586]
[1617312184490,1.0,1966.4,1966.0,0.4]
[1617312186310,1.0,1966.4,1966.0,8.02815]
[1617312186508,1.0,1966.4,1966.0,19.96815]
[1617312186709,1.0,1966.4,1966.0,12.34]
[1617312187512,0.38,1966.3,1966.0,11.94]
[1617312187710,1.28,1966.4,1966.0,11.94]
[1617312187910,1.28,1966.4,1966.0,3.94]
[1617312188310,1.28,1966.4,1965.9,18.72839944]
[1617312189539,0.392,1966.3,1965.9,18.72839944]
[1617312190343,1.0,1966.4,1966.0,0.38]
[1617312190741,1.39,1966.4,1966.0,2.8]
[1617312191342,1.39,1966.4,1965.9,18.32839944]
[1617312191343,1.39,1966.4,1965.9,18.31054]
[1617312191584,1.39,1966.4,1965.9,18.70054]
[1617312191784,1.74,1966.4,1965.9,18.70054]
[1617312192184,9.36902,1966.4,1965.9,18.70054]
[1617312193183,2.69626616,1966.3,1965.9,18.70054]
[1617312193384,2.69626616,1966.3,1965.9,21.50054]
[1617312193985,2.69626616,1966.3,1965.9,11.33]
[1617312194183,9.65976616,1966.3,1965.9,8.53]
[1617312194384,9.65976616,1966.3,1965.9,0.53]
[1617312194590,9.65976616,1966.3,1965.9,0.14]
[1617312194986,6.9635,1966.3,1965.9,0.14]
[1617312195189,2.84,1966.2,1965.9,0.14]
[1617312195388,14.97278,1966.3,1965.9,0.14]
[1617312195589,15.28078,1966.3,1965.9,0.14]
[1617312195789,3.0,1966.2,1965.9,0.14]
[1617312195987,3.41,1966.2,1965.9,0.14]
[1617312196190,3.41,1966.2,1965.7,8.02700351]
[1617312196394,3.41,1966.2,1965.7,7.78700351]
[1617312196395,0.392,1966.1,1965.7,7.78700351]
[1617312199021,0.41,1966.0,1965.7,7.62915]
[1617312199219,0.718,1966.0,1965.7,7.62915]
[1617312199667,0.718,1966.0,1965.7,7.64700646]
[1617312199867,0.718,1966.0,1965.7,7.62915]
[1617312200468,0.308,1966.0,1965.7,15.62915]
[1617312200670,0.308,1966.0,1965.7,19.50915]
[1617312201469,0.28,1966.1,1965.7,19.50915]
[1617312201869,0.4,1966.0,1965.8,7.62931]
[1617312202268,0.4,1966.0,1965.7,11.88]
[1617312202269,0.68,1966.1,1965.7,8.0]
[1617312202470,0.4,1966.0,1965.7,8.0]
[1617312202671,0.4,1966.0,1965.6,0.15785654]
[1617312202672,0.371,1965.9,1965.6,0.15785654]
[1617312203275,0.371,1965.9,1965.6,0.14]
[1617312203678,3.84253546,1965.9,1965.6,0.14]
[1617312203885,0.371,1965.9,1965.6,0.14]
[1617312204286,0.371,1965.9,1965.6,7.76994]
[1617312204480,0.371,1965.9,1965.6,15.76994]
[1617312204717,0.371,1965.9,1965.6,19.64994]
[1617312205915,0.371,1965.9,1965.6,15.76994]
[1617312206517,0.371,1965.9,1965.6,7.62994]
[1617312210740,0.371,1965.9,1965.6,15.62994]
[1617312211143,0.371,1965.9,1965.6,7.62994]
[1617312212763,0.371,1965.9,1965.6,15.62994]
[1617312214964,0.28,1965.9,1965.8,0.41]
[1617312215193,0.28,1965.9,1965.7,7.62982]
[1617312215793,0.28,1965.9,1965.6,8.0]
[1617312215995,0.42,1965.7,1965.4,0.41785698]
[1617312216196,0.42,1965.7,1965.6,7.63034]
[1617312216996,8.48153546,1966.1,1965.6,7.63034]
[1617312217197,0.294,1965.9,1965.6,7.63034]
[1617312218021,0.684,1965.9,1965.6,7.53034]
[1617312220457,0.294,1965.9,1965.6,7.53034]
[1617312223233,0.294,1965.9,1965.6,5.83034]
[1617312224629,0.4,1966.0,1965.6,5.83034]
[1617312224833,0.28,1965.9,1965.6,5.83034]
[1617312229942,0.28,1965.9,1965.6,6.22034]
[1617312231370,0.28,1965.9,1965.6,5.83034]
[1617312235997,0.28,1965.9,1965.7,0.39]
[1617312236214,0.28,1965.9,1965.7,8.0199]
[1617312238613,5.01,1966.2,1965.7,18.7399]
[1617312238835,0.413,1966.1,1965.9,7.62925]
[1617312239039,0.287,1966.2,1965.9,7.62925]
[1617312241042,8.62953,1966.4,1965.9,7.62925]
[1617312241238,8.62953,1966.4,1965.9,16.01925]
[1617312241464,8.62953,1966.4,1966.1,0.4]
[1617312241666,2.86,1966.3,1966.1,0.4]
[1617312241866,2.86,1966.3,1965.9,7.62925]
[1617312242065,3.245,1966.3,1965.9,8.02925]
[1617312242464,3.245,1966.3,1965.9,16.02925]
[1617312242865,3.245,1966.3,1965.9,15.62925]
[1617312243067,0.4,1966.0,1965.9,15.62925]
[1617312243268,0.4,1966.0,1965.9,7.62925]
[1617312243470,0.4,1966.0,1965.7,0.01785555]
[1617312243674,0.4,1966.0,1965.6,10.19056382]
[1617312243868,0.399,1965.9,1965.6,10.19056382]
[1617312244888,0.399,1965.9,1965.6,10.1727]
[1617312245388,0.399,1965.9,1965.6,10.19056378]
[1617312246194,0.399,1965.9,1965.6,18.19056378]
[1617312246388,0.399,1965.9,1965.6,10.75786378]
[1617312246590,0.399,1965.9,1965.6,0.01786378]
[1617312246811,0.399,1965.9,1965.5,0.01786398]
[1617312247013,0.399,1965.9,1965.6,0.01786367]
[1617312247815,0.399,1965.9,1965.6,7.64806367]
[1617312248017,0.399,1965.9,1965.6,15.64806367]
[1617312248216,0.399,1965.9,1965.6,8.01786367]
[1617312249217,0.399,1965.9,1965.6,0.01786367]
[1617312250043,0.399,1965.9,1965.5,0.15786401]
[1617312250248,0.399,1965.9,1965.7,7.62997]
[1617312250644,0.399,1965.9,1965.7,7.42997]
[1617312251247,0.399,1965.9,1965.6,7.63028]
[1617312251452,0.779,1965.9,1965.6,7.64814372]
[1617312251646,0.779,1965.9,1965.6,15.63028]
[1617312251848,0.399,1965.9,1965.6,15.64814712]
[1617312252082,0.698,1965.9,1965.6,15.64814712]
[1617312252284,0.698,1965.9,1965.6,7.95]
[1617312252484,0.41,1965.8,1965.6,7.95]
[1617312252884,0.41,1965.8,1965.5,0.01786735]
[1617312253284,0.711,1965.8,1965.5,0.01786735]
[1617312254486,9.852,1965.8,1965.7,0.01788611]
[1617312254690,9.551,1965.8,1965.7,0.01788611]
[1617312254889,9.551,1965.8,1965.6,0.0178863]
[1617312255095,9.859,1965.8,1965.6,0.0178863]
[1617312255491,9.859,1965.8,1965.7,0.01788619]
[1617312256089,10.051,1965.8,1965.7,0.01788619]
[1617312257316,10.373,1965.8,1965.6,0.01788606]
[1617312260741,10.051,1965.8,1965.6,0.01788606]
[1617312263968,10.051,1965.8,1965.5,7.84863606]
[1617312264168,10.051,1965.8,1965.5,7.44863606]
[1617312265492,10.051,1965.8,1965.5,7.53819466]
[1617312266687,10.051,1965.8,1965.6,8.01029]
[1617312267090,10.051,1965.8,1965.6,16.01029]
[1617312267287,10.051,1965.8,1965.6,0.38]
[1617312268135,10.051,1965.8,1965.7,7.63001]
[1617312268334,10.051,1965.8,1965.7,15.63001]
[1617312269133,9.901,1965.8,1965.7,15.63001]
[1617312270439,2.6353,1965.9,1965.7,15.63001]
[1617312270641,0.28,1965.9,1965.7,15.63001]
[1617312271241,0.28,1965.9,1965.6,0.47955528]
[1617312271242,0.39,1965.8,1965.5,18.17335]
[1617312271443,0.39,1965.8,1965.5,8.08955609]
[1617312271444,0.726,1965.8,1965.5,8.08955609]
[1617312271643,0.726,1965.8,1965.5,0.08955609]
[1617312271842,8.7191,1965.8,1965.5,0.08955609]
[1617312272040,8.7191,1965.8,1965.4,0.08956111]
[1617312272442,0.4,1965.7,1965.4,0.08956111]
[1617312273672,0.736,1965.7,1965.4,0.08956111]
[1617312273872,0.736,1965.7,1965.3,0.08952364]
[1617312274275,8.469,1965.4,1965.3,0.08952364]
[1617312274476,11.3594854,1965.4,1965.3,0.08952364]
[1617312274674,8.469,1965.4,1965.2,0.08953249]
[1617312276497,8.469,1965.4,1965.2,0.7425083]
[1617312276696,8.469,1965.4,1965.1,7.72172461]
[1617312276897,13.479,1965.4,1965.1,7.72172461]
[1617312277097,2.72,1965.3,1965.1,7.72172461]
[1617312277996,2.72,1965.3,1965.1,7.78157413]
[1617312278214,13.359,1965.4,1965.1,7.78157413]
[1617312278415,13.079,1965.4,1965.1,7.78157413]
[1617312278616,1.1123,1965.5,1965.3,0.08963011]
[1617312278824,4.00443752,1965.5,1965.3,0.08963011]
[1617312279023,5.42,1965.4,1965.1,15.78157413]
[1617312279229,0.41,1965.2,1965.0,10.32516468]
[1617312279424,0.39,1965.1,1965.0,18.32516468]
[1617312279624,3.8503866,1965.1,1965.0,18.32516468]
[1617312279824,0.39,1965.1,1965.0,18.32516468]
[1617312280423,0.39,1965.1,1965.0,0.14938468]
[1617312280623,5.4,1965.1,1965.0,0.14938468]
[1617312280846,0.39,1965.1,1964.9,0.79973888]
[1617312281044,0.39,1965.1,1965.0,0.65034589]
[1617312281449,0.39,1965.1,1964.9,0.14939233]
[1617312281644,0.39,1965.1,1965.0,0.65034678]
[1617312281847,8.8603866,1965.1,1964.9,0.79973597]
[1617312282047,0.4,1964.8,1964.6,0.14940758]
[1617312282246,0.68,1964.8,1964.6,0.14940758]
[1617312282445,8.4703866,1964.9,1964.6,0.14940758]
[1617312282651,7.83,1964.8,1964.6,0.14940758]
[1617312282845,3.41879552,1964.7,1964.6,0.14940758]
[1617312283044,3.41879552,1964.7,1964.6,0.79984346]
[1617312283247,8.24,1964.8,1964.6,0.79984346]
[1617312283464,8.24,1964.8,1964.6,0.14940758]
[1617312283867,7.83,1964.8,1964.6,0.14940758]
[1617312284267,7.83,1964.8,1964.6,0.79984668]
[1617312284468,7.83,1964.8,1964.6,0.14940758]
[1617312284668,7.83,1964.8,1964.7,0.65044837]
[1617312284867,7.83,1964.8,1964.6,0.14940758]
[1617312285067,7.83,1964.8,1964.7,0.6504428]
[1617312285273,7.83,1964.8,1964.6,0.79985188]
[1617312285472,5.01,1964.7,1964.5,0.14941919]
[1617312285869,5.01,1964.7,1964.3,7.63479]
[1617312286290,5.01,1964.7,1964.3,7.58479]
[1617312286491,5.41,1964.6,1964.3,7.58479]
[1617312287091,0.4,1964.6,1964.3,7.58479]
[1617312287490,0.4,1964.6,1964.3,8.58479]
[1617312288093,0.38,1964.4,1964.3,8.58479]
[1617312288296,12.77989552,1964.4,1964.3,1.0]
[1617312288917,12.77989552,1964.4,1964.2,8.366]
[1617312289119,0.41,1964.3,1964.2,8.366]
[1617312289521,5.42,1964.3,1964.2,8.366]
[1617312289719,8.83171924,1964.3,1964.1,3.21678028]
[1617312289921,5.01,1964.2,1964.1,2.60172019]
[1617312290121,5.4,1964.2,1964.1,2.60172019]
[1617312291344,12.4,1964.2,1964.1,2.60172019]
[1617312293966,12.4,1964.2,1964.0,2.019e-05]
[1617312293967,5.4,1964.2,1964.0,2.019e-05]
[1617312294169,17.44711852,1964.1,1964.0,2.019e-05]
[1617312294368,17.84711852,1964.1,1964.0,2.019e-05]
[1617312294970,25.48655852,1964.1,1964.0,2.019e-05]
[1617312295772,26.68655852,1964.1,1964.0,2.019e-05]
[1617312295970,25.48655852,1964.1,1964.0,2.019e-05]
[1617312301229,0.39,1963.8,1963.6,0.96037826]